fUSD/lending_fUSD_20240606
["ID","MTS","AMOUNT","RATE_DAILY","PERIOD"]
[328648117,1717673443481,-453.78787986,0.00022965,2]
[328648118,1717673443491,-150.0,0.00023,3]
[328648119,1717673443501,-170.0,0.00023,2]
[328648120,1717673443513,-3243.31963759,0.00023035,2]
[328648121,1717673443528,-300.0,0.00023154,2]
[328648122,1717673443538,-300.0,0.00023437,2]
[328648123,1717673443549,-150.0,0.000235,3]
[328648124,1717673443559,-500.0,0.00023504,2]
[328648125,1717673443569,-300.0,0.00023719,2]
[328648126,1717673443580,-500.0,0.00023778,2]
[328648127,1717673443590,-1600.0,0.00023778,2]
[328648128,1717673443600,-500.0,0.00023778,2]
[328648129,1717673443611,-1500.0,0.00023778,2]
[328648130,1717673443621,-3243.31963759,0.00023797,2]
[328648131,1717673443631,-153.59420895,0.000239,2]
[328648132,1717673443641,-80492.75010351,0.00024,3]
[328648133,1717673443652,-610.68357264,0.00024,10]
[328648134,1717673443662,-151.0,0.00024,7]
[328648135,1717673443672,-151.0,0.00024,7]
[328648136,1717673443683,-151.0,0.00024,7]
[328648137,1717673443695,-151.0,0.00024,7]
[328648138,1717673443704,-151.0,0.00024,7]
[328648139,1717673443714,-151.0,0.00024,7]
[328648140,1717673443724,-151.0,0.00024,7]
[328648141,1717673443733,-221.544961,0.00024,7]
[328648142,1717673443745,-151.0,0.00024,7]
[328648143,1717673443756,-151.0,0.00024,7]
[328648144,1717673443766,-151.0,0.00024,7]
[328648145,1717673443776,-151.0,0.00024,7]
[328648146,1717673443785,-280.970932,0.00024,7]
[328648147,1717673443795,-151.0,0.00024,7]
[328648148,1717673443805,-151.0,0.00024,7]
[328648149,1717673443815,-151.0,0.00024,7]
[328648150,1717673443824,-151.0,0.00024,7]
[328648151,1717673443834,-352.122165,0.00024,7]
[328648152,1717673443844,-352.122165,0.00024,7]
[328648153,1717673443854,-151.0,0.00024,7]
[328648154,1717673443863,-277.056213,0.00024,7]
[328648155,1717673443872,-151.0,0.00024,7]
[328648156,1717673443882,-151.0,0.00024,7]
[328648157,1717673443892,-151.0,0.00024,7]
[328648158,1717673443901,-151.0,0.00024,7]
[328648159,1717673443911,-151.0,0.00024,7]
[328648160,1717673443920,-374.691515,0.00024,7]
[328648161,1717673443930,-151.0,0.00024,7]
[328648162,1717673443940,-374.691515,0.00024,7]
[328648163,1717673443951,-151.0,0.00024,7]
[328648164,1717673443960,-151.0,0.00024,7]
[328648165,1717673443970,-151.0,0.00024,7]
[328648166,1717673443979,-151.0,0.00024,7]
[328648167,1717673443989,-151.0,0.00024,7]
[328648168,1717673443999,-151.0,0.00024,7]
[328648169,1717673444008,-151.0,0.00024,7]
[328648170,1717673444018,-151.0,0.00024,7]
[328648171,1717673444028,-2579.43821,0.00024,2]
[328648172,1717673444037,-385.001604,0.00024,7]
[328648173,1717673444047,-385.001604,0.00024,7]
[328648174,1717673444057,-151.0,0.00024,7]
[328648175,1717673444067,-151.0,0.00024,7]
[328648176,1717673444076,-268.540201,0.00024,7]
[328648177,1717673444085,-151.0,0.00024,7]
[328648178,1717673444095,-179.420221,0.00024,7]
[328648179,1717673444104,-345.700788,0.00024,7]
[328648180,1717673444114,-179.420221,0.00024,7]
[328648181,1717673444124,-151.0,0.00024,7]
[328648182,1717673444133,-345.700788,0.00024,7]
[328648183,1717673444143,-151.0,0.00024,7]
[328648184,1717673444153,-212.304555,0.00024,7]
[328648185,1717673444163,-151.0,0.00024,7]
[328648186,1717673444172,-212.304555,0.00024,7]
[328648187,1717673444182,-239.908933,0.00024,7]
[328648188,1717673444191,-151.0,0.00024,7]
[328648189,1717673444200,-239.908933,0.00024,7]
[328648190,1717673444210,-151.0,0.00024,7]
[328648191,1717673444220,-151.0,0.00024,7]
[328648192,1717673444230,-151.0,0.00024,7]
[328648193,1717673444239,-469.003116,0.00024,7]
[328648194,1717673444249,-469.003116,0.00024,7]
[328648195,1717673444260,-319.855156,0.00024,7]
[328648196,1717673444269,-319.855156,0.00024,7]
[328648197,1717673444279,-151.0,0.00024,7]
[328648198,1717673444289,-151.0,0.00024,7]
[328648199,1717673444299,-151.0,0.00024,7]
[328648200,1717673444309,-163.504047,0.00024,7]
[328648201,1717673444319,-163.504047,0.00024,7]
[328648202,1717673444329,-150.0,0.00024,4]
[328648203,1717673444339,-151.0,0.00024,7]
[328648204,1717673444349,-151.0,0.00024,7]
[328648205,1717673444359,-151.0,0.00024,7]
[328648206,1717673444369,-151.0,0.00024,7]
[328648207,1717673444378,-151.0,0.00024,7]
[328648208,1717673444388,-151.0,0.00024,7]
[328648209,1717673444398,-255.804887,0.00024,7]
[328648210,1717673444408,-160.66621,0.00024,7]
[328648211,1717673444418,-255.804887,0.00024,7]
[328648212,1717673444428,-343.08800883,0.00024001,2]
[328648213,1717673444438,-500.0,0.00024052,2]
[328648214,1717673444448,-170.0,0.00024164,2]
[328648215,1717673444458,-180.0,0.0002423,2]
[328648216,1717673444468,-1600.0,0.00024326,2]
[328648217,1717673444477,-1500.0,0.00024326,2]
[328648218,1717673444487,-163.84,0.00024384,2]
[328648219,1717673444498,-158.84,0.00024384,2]
[328648220,1717673444507,-410.92,0.00024384,2]
[328648221,1717673444522,-228.74,0.00024384,2]
[328648222,1717673444532,-150.0,0.000245,4]
[328648223,1717673444541,-3243.31963759,0.0002456,2]
[328648224,1717673444551,-151.0,0.00024658,7]
[328648225,1717673444562,-151.0,0.00024658,7]
[328648226,1717673444572,-200.34748,0.00024658,7]
[328648227,1717673444582,-2123.0,0.00024687,2]
[328648228,1717673444592,-151.0,0.00024798,7]
[328648229,1717673444602,-151.0,0.00024798,7]
[328648230,1717673444612,-151.0,0.00024798,7]
[328648231,1717673444622,-221.544961,0.00024798,7]
[328648232,1717673444632,-151.0,0.00024798,7]
[328648233,1717673444642,-151.0,0.00024798,7]
[328648234,1717673444652,-151.0,0.00024798,7]
[328648235,1717673444662,-151.0,0.00024798,7]
[328648236,1717673444672,-151.0,0.00024798,7]
[328648237,1717673444682,-151.0,0.00024798,7]
[328648238,1717673444692,-151.0,0.00024798,7]
[328648239,1717673444701,-151.0,0.00024798,7]
[328648240,1717673444711,-352.122165,0.00024798,7]
[328648241,1717673444720,-352.122165,0.00024798,7]
[328648242,1717673444730,-151.0,0.00024798,7]
[328648243,1717673444739,-151.338811,0.00024798,7]
[328648244,1717673444749,-151.0,0.00024798,7]
[328648245,1717673444759,-151.0,0.00024798,7]
[328648246,1717673444769,-151.0,0.00024798,7]
[328648247,1717673444779,-151.0,0.00024798,7]
[328648248,1717673444789,-374.691515,0.00024798,7]
[328648249,1717673444799,-151.0,0.00024798,7]
[328648250,1717673444809,-374.691515,0.00024798,7]
[328648251,1717673444819,-151.0,0.00024798,7]
[328648252,1717673444828,-151.0,0.00024798,7]
[328648253,1717673444838,-151.0,0.00024798,7]
[328648254,1717673444848,-151.0,0.00024798,7]
[328648255,1717673444857,-151.0,0.00024798,7]
[328648256,1717673444867,-151.0,0.00024798,7]
[328648257,1717673444877,-151.0,0.00024798,7]
[328648258,1717673444887,-151.0,0.00024798,7]
[328648259,1717673444898,-151.0,0.00024798,7]
[328648260,1717673444908,-151.0,0.00024798,7]
[328648261,1717673444917,-385.001604,0.00024798,7]
[328648262,1717673444927,-385.001604,0.00024798,7]
[328648263,1717673444937,-13078.19912366,0.00024798,2]
[328648264,1717673444946,-13078.19912364,0.00024798,2]
[328648265,1717673444956,-13078.19912364,0.00024798,2]
[328648266,1717673444966,-13078.19912364,0.00024798,2]
[328648267,1717673444975,-13078.19912364,0.00024798,2]
[328648268,1717673444985,-13078.19912364,0.00024798,2]
[328648269,1717673444994,-13078.19912364,0.00024798,2]
[328648270,1717673445004,-151.0,0.00024798,7]
[328648271,1717673445014,-151.0,0.00024798,7]
[328648272,1717673445024,-151.0,0.00024798,7]
[328648273,1717673445034,-151.0,0.00024798,7]
[328648274,1717673445043,-151.0,0.00024798,7]
[328648275,1717673445053,-151.0,0.00024798,7]
[328648276,1717673445063,-255.804887,0.00024798,7]
[328648277,1717673445073,-160.66621,0.00024798,7]
[328648278,1717673445083,-255.804887,0.00024798,7]
[328648279,1717673445093,-201.0,0.0002483,2]
[328648280,1717673445102,-500.0,0.00024874,2]
[328648281,1717673445112,-500.0,0.00024874,2]
[328648282,1717673445122,-1600.0,0.00024874,2]
[328648283,1717673445131,-1500.0,0.00024874,2]
[328648284,1717673445141,-679.68,0.00024878,2]
[328648285,1717673445151,-450.1041003,0.00024999,2]
[328648286,1717673445160,-600.01373441,0.00025,2]
[328648287,1717673445170,-713.77198143,0.00025,2]
[328648288,1717673445180,-225.04645167,0.00025,2]
[328648289,1717673445190,-1000.0,0.00025,5]
[328648290,1717673445200,-706.05483356,0.00025,2]
[328648291,1717673445210,-1250.0,0.00025,2]
[328648292,1717673445220,-160.0,0.00025,2]
[328648293,1717673445230,-324.66852359,0.00025,2]
[328648294,1717673445240,-1175.92306266,0.00025,2]
[328648295,1717673445249,-155.0,0.00025,2]
[328648296,1717673445260,-3188.08951143,0.000251,2]
[328648297,1717673445269,-500.0,0.00025148,2]
[328648298,1717673445279,-453.78787986,0.00025231,2]
[328648299,1717673445289,-3243.31963759,0.00025323,2]
[328648300,1717673445299,-150.0,0.000254,2]
[328648301,1717673445309,-1600.0,0.00025422,2]
[328648302,1717673445319,-1500.0,0.00025422,2]
[328648303,1717673445329,-254.60930081,0.000255,2]
[328648304,1717673445339,-201.0,0.0002551,2]
[328648305,1717673445348,-213.0,0.0002551,2]
[328648306,1717673445358,-1500.0,0.0002597,2]
[328648307,1717673445368,-500.0,0.0002597,2]
[328648308,1717673445378,-500.0,0.0002597,2]
[328648309,1717673445388,-4053.1203069,0.00026,2]
[328648310,1717673445398,-1023.0,0.00026,6]
[328648311,1717673445408,-1002.0,0.00026,6]
[328648312,1717673445419,-1672.23298978,0.00026086,2]
[328648313,1717673445436,-1571.08664781,0.00026086,2]
[328648314,1717673445447,-192.16475424,0.0002619,2]
[328648319,1717673446548,-2090.77142346,0.00013999,2]
[328648320,1717673446558,-181.70125101,0.00017259,2]
[328648321,1717673446571,-21.81885492,0.00024,7]
[328648322,1717673446997,-138.84735508,0.00024,7]
[328648323,1717673447007,-151.0,0.00024,7]
[328648324,1717673447018,-242.32264492,0.00024,7]
[328648337,1717674448365,300.0,0.000139,5]
[328648343,1717674594749,1012.0,0.0003,40]
[328648353,1717674632206,-3384.77160162,0.00010997,2]
[328648354,1717674632217,-4103.98111031,0.00010998,2]
[328648355,1717674632227,-847.33681949,0.00011,2]
[328648356,1717674632236,-699.2277,0.00011177,2]
[328648357,1717674632246,-150.0,0.0001126,2]
[328648358,1717674632256,-150.0,0.00011276,2]
[328648359,1717674632267,-349.04010262,0.00011277,2]
[328648360,1717674632277,-300.93170183,0.00011277,2]
[328648361,1717674632287,-299.61289414,0.00011277,2]
[328648362,1717674632296,-289.77027147,0.00011277,2]
[328648363,1717674632307,-2635.74340691,0.00011277,2]
[328648364,1717674632318,-210.99517928,0.00011277,2]
[328648365,1717674632328,-11948.52093541,0.000118,2]
[328648366,1717674632342,-307.8334,0.000118,2]
[328648373,1717674638013,-2698.71654521,0.000118,2]
[328648374,1717674638023,-151.26262662,0.000138,2]
[328648375,1717674638032,-292.67,0.0001389,3]
[328648376,1717674638044,-161.56018553,0.000139,2]
[328648377,1717674638059,-538.43981447,0.000139,2]
[328648378,1717674638069,-201.89046283,0.000139,2]
[328648379,1717674638078,-1925.62062522,0.000139,2]
[328648380,1717674638176,-38981.71650124,0.000139,2]
[328648381,1717674638229,-14000.61551684,0.000139,2]
[328648382,1717674638336,-12739.80001077,0.000139,2]
[328648383,1717674638348,-327.7311788,0.000139,2]
[328648384,1717674638443,-3646.45277639,0.000139,2]
[328648394,1717674640773,-500.0,0.000139,2]
[328648402,1717674643285,-3563.49059944,0.000139,2]
[328648403,1717674643396,-95000.85952901,0.000139,2]
[328648424,1717674646069,-1922.64631707,0.000139,2]
[328648426,1717674646080,-106130.9949068,0.000139,2]
[328648427,1717674646092,-7560.01202902,0.000139,2]
[328648429,1717674646101,-948.09480323,0.000139,2]
[328648431,1717674646110,-18701.54512874,0.000139,2]
[328648433,1717674646121,-355.195,0.000139,2]
[328648434,1717674646434,-801.67932847,0.000139,2]
[328648438,1717675094706,50000.0,0.0003,40]
[328648439,1717675184342,-300.0,0.00031675,120]
[328648440,1717675269594,600.0,0.000138,5]
[328648441,1717675271694,1200.0,0.000139,5]
[328648444,1717675636134,800.0,0.000139,5]
[328648445,1717675705448,155.0,9.724e-05,2]
[328648446,1717675748147,-1900.48321668,0.00010445,2]
[328648447,1717675748169,-3384.77160162,0.00010446,2]
[328648448,1717675748191,-150.0,0.00010447,2]
[328648449,1717675748215,-150.0,0.00010447,2]
[328648450,1717675748236,-219.0,0.00010447,2]
[328648451,1717675748261,-1218.39220414,0.00010447,2]
[328648452,1717675748284,-345.51334506,0.00010448,2]
[328648453,1717675748306,-2947.29782758,0.00010448,2]
[328648454,1717675793495,-3017.14790964,0.00010451,2]
[328648455,1717675793517,-982.85209036,0.00010452,2]
[328648456,1717675794370,-628.67197727,0.00010452,2]
[328648457,1717675794395,-164.47,0.00010453,2]
[328648458,1717675794418,-210.0,0.00011492,2]
[328648459,1717675794441,-210.0,0.00011492,2]
[328648460,1717675794464,-2786.85802273,0.00011602,2]
[328648461,1717675794658,-2792.73721317,0.00011602,2]
[328648462,1717675794681,-247.50732179,0.00011603,2]
[328648463,1717675813004,959.75546504,0.0001035,2]
[328648464,1717675813235,627.39703496,0.0001035,2]
[328648465,1717675819068,3372.60296504,0.00010448,2]
[328648466,1717675819097,4000.0,0.00010448,2]
[328648467,1717675819124,4000.0,0.00010448,2]
[328648468,1717675819150,4000.0,0.00010448,2]
[328648469,1717675819174,4000.0,0.00010448,2]
[328648470,1717675819200,4000.0,0.00010448,2]
[328648471,1717675819227,4000.0,0.00010448,2]
[328648472,1717675819252,4000.0,0.00010448,2]
[328648481,1717675832362,-13545.52947069,0.00010448,2]
[328648482,1717675832426,-4918.43563443,0.00010448,2]
[328648483,1717675832444,-7117.38936,0.00010448,2]
[328648484,1717675832460,-293.34092058,0.00010448,2]
[328648485,1717675832488,-7100.0,0.00010448,2]
[328648486,1717675832562,-30828.65807985,0.00010448,2]
[328648487,1717675832576,-243.89,0.00010959,2]
[328648488,1717675832588,-641.26,0.00011706,2]
[328648489,1717675832602,-3384.77160162,0.00012383,2]
[328648490,1717675832615,-625.77511416,0.00012447,2]
[328648491,1717675832628,-499.99,0.00012447,2]
[328648492,1717675832642,-246.96,0.00012681,2]
[328648493,1717675832655,-1853.41,0.00012739,2]
[328648494,1717675832670,-214.54847243,0.00012963,2]
[328648495,1717675832684,-1505.10587642,0.00012963,2]
[328648497,1717675832697,-172.81676625,0.00012963,2]
[328648499,1717675832711,-3547.56253736,0.00012963,2]
[328648502,1717675832726,-507.36180508,0.00012963,2]
[328648504,1717675832739,-941.80860726,0.00012963,2]
[328648507,1717675832753,-862.2779721,0.00012965,2]
[328648509,1717675832766,-4298.60829304,0.00012965,2]
[328648512,1717675832779,-647.14881689,0.00012965,2]
[328648514,1717675832792,-1174.81055843,0.00012965,2]
[328648517,1717675832805,-7538.65976902,0.00012965,2]
[328648519,1717675832818,-198.77312232,0.00012965,2]
[328648521,1717675832831,-1248.52290035,0.00012965,2]
[328648522,1717675832845,-10532.44542063,0.00012965,2]
[328648523,1717675832858,-3058.44150366,0.00012965,2]
[328648524,1717675832872,-483.13652603,0.00012965,2]
[328648525,1717675832885,-2193.12420193,0.00012965,2]
[328648526,1717675832899,-18909.93397654,0.00012965,2]
[328648527,1717675832912,-463.69165335,0.00012965,2]
[328648529,1717675832925,-662.22180085,0.00012965,2]
[328648532,1717675832939,-3099.09729572,0.00012965,2]
[328648534,1717675832952,-155.0,0.00012965,2]
[328648536,1717675832965,-455.52152311,0.00012965,2]
[328648537,1717675832979,-411.04983464,0.00012966,2]
[328648538,1717675832992,-715.17847291,0.00012966,2]
[328648539,1717675833006,-23900.0,0.00012967,2]
[328648540,1717675833019,-250.0,0.000133,2]
[328648541,1717675833032,-197.90689239,0.00013506,2]
[328648542,1717675833045,-386.94,0.00013699,2]
[328648543,1717675833058,-174.17,0.00013699,2]
[328648544,1717675833071,-267.0597,0.000138,2]
[328648545,1717675833084,-2378.0124,0.000138,2]
[328648546,1717675833098,-319.47107323,0.000138,2]
[328648547,1717675833111,-7323.15413047,0.0001389,2]
[328648548,1717675833124,-1278.32023457,0.00013898,2]
[328648549,1717675833137,-348.80783578,0.00013898,2]
[328648550,1717675833151,-1156.52628486,0.00013899,2]
[328648551,1717675833165,-155.60296783,0.00013899,2]
[328648552,1717675833178,-500.0,0.000139,2]
[328648553,1717675833190,-143184.5342,0.000139,2]
[328648554,1717675833204,-39269.1915,0.000139,2]
[328648555,1717675833222,-8499.8926,0.000139,2]
[328648556,1717675833234,-39188.52127306,0.000139,2]
[328648557,1717675833253,-2278.48362694,0.000139,2]
[328648558,1717675833267,-1389.9544,0.000139,2]
[328648559,1717675833280,-3000.0,0.000139,2]
[328648560,1717675833293,-265.73225982,0.0001393,2]
[328648561,1717675833306,-188.46971324,0.0001397,2]
[328648562,1717675833339,-452.79028676,0.0001397,2]
[328648563,1717675833353,-174.86257571,0.0001399,2]
[328648564,1717675833366,-2006.60849381,0.00013998,2]
[328648565,1717675833379,-208.34045628,0.00013998,2]
[328648566,1717675833392,-628.0709159,0.00013998,2]
[328648567,1717675833406,-325.41430204,0.00013998,2]
[328648568,1717675833418,-155.53277293,0.00013998,2]
[328648569,1717675833427,-328.967467,0.00013999,2]
[328648570,1717675833437,-313380.44466976,0.00014,2]
[328648571,1717675833448,-454.25461509,0.00014,2]
[328648574,1717675838334,-203.24,0.0001399,3]
[328648575,1717675838343,-3042.51251388,0.00014,2]
[328648576,1717675838367,-412633.86333363,0.00014,2]
[328648577,1717675838377,-174.17,0.00014384,2]
[328648578,1717675838387,-1846.66022326,0.00014616,2]
[328648579,1717675838397,-150.0,0.0001471,2]
[328648580,1717675838407,-155.37580712,0.00015,2]
[328648581,1717675838417,-620.741956,0.00015,2]
[328648582,1717675838426,-155.4878975,0.00015,2]
[328648583,1717675838436,-200.0,0.00015,2]
[328648584,1717675838445,-174.17,0.00015068,2]
[328648585,1717675838455,-319.47107319,0.00015264,2]
[328648586,1717675838464,-406.48,0.0001536,3]
[328648587,1717675838475,-1853.41,0.00015479,2]
[328648588,1717675838485,-174.17,0.00015753,2]
[328648589,1717675838495,-1846.66022326,0.00016005,2]
[328648590,1717675838507,-641.26,0.00016234,2]
[328648591,1717675838517,-174.17,0.00016438,2]
[328648592,1717675838528,-1000.0,0.00016547,2]
[328648593,1717675838538,-319.47107319,0.00016727,2]
[328648594,1717675838548,-359.03753093,0.00017259,2]
[328648595,1717675838558,-1846.66022326,0.00017395,2]
[328648596,1717675838568,-3222.0,0.00018,2]
[328648597,1717675838579,-891.0,0.00018,2]
[328648598,1717675838589,-319.47107319,0.00018191,2]
[328648599,1717675838599,-1853.41,0.00018218,2]
[328648600,1717675838609,-641.26,0.00018498,2]
[328648601,1717675838619,-1000.0,0.00018615,2]
[328648602,1717675838629,-1846.66022326,0.00018784,2]
[328648603,1717675838640,-3000.0,0.000189,2]
[328648604,1717675838650,-1600.0,0.000189,6]
[328648605,1717675838659,-261.13840404,0.00019178,2]
[328648606,1717675838669,-159.1355223,0.00019178,2]
[328648607,1717675838679,-386.94,0.00019178,2]
[328648608,1717675838690,-3891.02501567,0.000192,2]
[328648609,1717675838700,-319.47107319,0.00019655,2]
[328648610,1717675838710,-291.068,0.00019666,2]
[328648611,1717675838720,-5151.0,0.00019666,2]
[328648612,1717675838730,-5778.0,0.00019666,2]
[328648613,1717675838743,-1535.779,0.00019666,2]
[328648614,1717675838753,-9170.759,0.00019666,2]
[328648615,1717675838764,-1109.0,0.00019666,2]
[328648616,1717675838774,-150.0,0.00019906,2]
[328648617,1717675838783,-165.0,0.00019906,2]
[328648618,1717675838793,-446.0,0.00019906,2]
[328648619,1717675838803,-1282.571,0.00019906,2]
[328648620,1717675838812,-808.0,0.00019906,2]
[328648621,1717675838822,-2123.0,0.00019906,2]
[328648622,1717675838832,-2123.0,0.00019906,2]
[328648623,1717675838841,-250.0,0.00019921,2]
[328648624,1717675838853,-549.09326146,0.0002,2]
[328648626,1717675838862,-16051.60222868,0.0002,3]
[328648628,1717675838871,-7077.02719283,0.0002,2]
[328648629,1717675838881,-1979.14657313,0.0002,2]
[328648630,1717675838890,-157.98355192,0.0002,4]
[328648631,1717675838900,-610.704464,0.0002,7]
[328648632,1717675838909,-1280.07294978,0.0002,2]
[328648633,1717675838922,-226.60187199,0.000201,2]
[328648634,1717675838932,-1846.66022326,0.00020174,2]
[328648635,1717675838941,-1000.0,0.00020683,2]
[328648636,1717675838951,-641.26,0.00020762,2]
[328648637,1717675838961,-319.47107319,0.00021118,2]
[328648638,1717675838972,-300.0,0.0002146,2]
[328648639,1717675838982,-1846.66022326,0.00021563,2]
[328648640,1717675838991,-800.0,0.0002189,2]
[328648641,1717675839001,-1196.66,0.00021918,2]
[328648642,1717675839013,-250.0,0.00021918,2]
[328648643,1717675839022,-320.22,0.00021918,2]
[328648644,1717675839033,-172.0,0.00022,2]
[328648645,1717675839043,-319.47107319,0.00022582,2]
[328648646,1717675839053,-1000.0,0.00022752,2]
[328648647,1717675839064,-300.0,0.00022801,2]
[328648648,1717675839075,-2123.0,0.00022906,2]
[328648649,1717675839086,-1846.66022326,0.00022953,2]
[328648650,1717675839096,-641.26,0.00023026,2]
[328648651,1717675839106,-595.3,0.00023233,2]
[328648652,1717675839116,-800.0,0.00023315,2]
[328648653,1717675839127,-9992.38439003,0.000236,2]
[328648654,1717675839138,-151.0,0.000236,7]
[328648655,1717675839147,-223.279884,0.000236,7]
[328648656,1717675839157,-151.0,0.000236,7]
[328648657,1717675839167,-151.0,0.000236,7]
[328648658,1717675839177,-151.0,0.000236,7]
[328648659,1717675839187,-151.0,0.000236,7]
[328648660,1717675839196,-161.478198,0.000236,7]
[328648661,1717675839206,-155.471968,0.000236,7]
[328648662,1717675839216,-161.478198,0.000236,7]
[328648663,1717675839226,-151.0,0.000236,7]
[328648664,1717675839238,-151.0,0.000236,7]
[328648665,1717675839248,-151.0,0.000236,7]
[328648666,1717675839258,-151.0,0.000236,7]
[328648667,1717675839268,-151.0,0.000236,7]
[328648668,1717675839278,-191.074099,0.000236,7]
[328648669,1717675839287,-191.074099,0.000236,7]
[328648670,1717675839298,-215.91804,0.000236,7]
[328648671,1717675839308,-215.91804,0.000236,7]
[328648672,1717675839319,-1200.0,0.00023778,2]
[328648673,1717675839329,-500.0,0.00023778,2]
[328648674,1717675839339,-4181.4538386,0.0002381,2]
[328648675,1717675839350,-151.0,0.0002381,7]
[328648676,1717675839359,-151.0,0.0002381,7]
[328648677,1717675839368,-151.0,0.0002381,7]
[328648678,1717675839378,-151.0,0.0002381,7]
[328648679,1717675839388,-281.697732,0.0002381,7]
[328648680,1717675839398,-281.697732,0.0002381,7]
[328648681,1717675839407,-299.753212,0.0002381,7]
[328648682,1717675839417,-299.753212,0.0002381,7]
[328648683,1717675839427,-151.0,0.0002381,7]
[328648684,1717675839436,-151.0,0.0002381,7]
[328648685,1717675839446,-151.0,0.0002381,7]
[328648686,1717675839456,-151.0,0.0002381,7]
[328648687,1717675839466,-274.230566,0.0002381,7]
[328648688,1717675839476,-151.0,0.0002381,7]
[328648689,1717675839490,-151.0,0.0002381,7]
[328648690,1717675839500,-151.0,0.0002381,7]
[328648691,1717675839509,-151.0,0.0002381,7]
[328648692,1717675839520,-308.001283,0.0002381,7]
[328648693,1717675839531,-308.001283,0.0002381,7]
[328648694,1717675839541,-151.0,0.0002381,7]
[328648695,1717675839551,-151.0,0.0002381,7]
[328648696,1717675839561,-287.869641,0.0002381,7]
[328648697,1717675839571,-287.869641,0.0002381,7]
[328648698,1717675839581,-158.550669,0.0002381,7]
[328648699,1717675839591,-311.130709,0.0002381,7]
[328648700,1717675839603,-151.0,0.0002381,7]
[328648701,1717675839614,-311.130709,0.0002381,7]
[328648702,1717675839624,-422.102804,0.0002381,7]
[328648703,1717675839634,-422.102804,0.0002381,7]
[328648704,1717675839644,-151.0,0.0002381,7]
[328648705,1717675839654,-1869.17864,0.0002381,7]
[328648706,1717675839664,-1869.17864,0.0002381,7]
[328648707,1717675839674,-151.0,0.0002381,7]
[328648708,1717675839684,-151.0,0.0002381,7]
[328648709,1717675839695,-161.097334,0.0002381,7]
[328648710,1717675839705,-159.383214,0.0002381,7]
[328648711,1717675839715,-151.0,0.0002381,7]
[328648712,1717675839725,-151.0,0.0002381,7]
[328648713,1717675839735,-151.0,0.0002381,7]
[328648714,1717675839744,-151.0,0.000239,7]
[328648715,1717675839754,-151.0,0.000239,7]
[328648716,1717675839765,-151.0,0.000239,7]
[328648717,1717675839775,-151.0,0.000239,7]
[328648718,1717675839786,-199.390465,0.000239,7]
[328648719,1717675839796,-199.390465,0.000239,7]
[328648720,1717675839807,-151.0,0.000239,7]
[328648721,1717675839816,-3000.0,0.000239,2]
[328648722,1717675839827,-1419.19646823,0.00024,2]
[328648723,1717675839836,-155.0,0.00024,2]
[328648724,1717675839847,-319.47107319,0.00024045,2]
[328648725,1717675839857,-490.76595133,0.00024142,2]
[328648726,1717675839867,-1200.0,0.00024326,2]
[328648727,1717675839876,-1846.66022326,0.00024342,2]
[328648728,1717675839886,-155.08,0.00024384,2]
[328648729,1717675839897,-163.84,0.00024384,2]